fUST/lending_fUST_20250715
["ID","MTS","AMOUNT","RATE_DAILY","PERIOD"]
[372268867,1752569454974,-460.0,0.00020273,2]
[372268868,1752569454983,-544.92,0.00020273,2]
[372268869,1752569454992,-594.7,0.00020273,2]
[372268870,1752569455002,-1040.12,0.00020273,2]
[372268871,1752569455012,-1141.15,0.00020273,2]
[372268872,1752569455023,-732.0,0.00020273,2]
[372268873,1752569455032,-460.0,0.00020273,2]
[372268874,1752569455042,-484.83126635,0.00020273,2]
[372268875,1752569455052,-460.0,0.00020273,2]
[372268876,1752569455061,-460.0,0.00020273,2]
[372268877,1752569455070,-460.0,0.00020273,2]
[372268878,1752569455080,-1213.65,0.00020273,2]
[372268879,1752569455089,-487.86,0.00020273,2]
[372268880,1752569455099,-545.61,0.00020273,2]
[372268881,1752569455108,-699.09,0.00020273,2]
[372268882,1752569455117,-460.0,0.00020273,2]
[372268883,1752569455127,-1544.73,0.00020273,2]
[372268884,1752569455136,-843.11,0.00020273,2]
[372268885,1752569455146,-1501.29,0.00020273,2]
[372268886,1752569455156,-726.16,0.00020273,2]
[372268887,1752569455165,-460.0,0.00020273,2]
[372268888,1752569455175,-513.49,0.00020273,2]
[372268889,1752569455185,-460.0,0.00020273,2]
[372268890,1752569455196,-460.0,0.00020273,2]
[372268891,1752569455206,-869.68,0.00020273,2]
[372268892,1752569455216,-460.0,0.00020273,2]
[372268893,1752569455235,-626.75,0.00020273,2]
[372268894,1752569455249,-509.10184051,0.00020273,2]
[372268895,1752569455268,-2036.4,0.00020273,2]
[372268896,1752569455288,-460.0,0.00020273,2]
[372268897,1752569455297,-2261.79,0.00020273,2]
[372268898,1752569455307,-6187.23,0.00020273,2]
[372268899,1752569455316,-1463.18,0.00020273,2]
[372268900,1752569455326,-460.0,0.00020273,2]
[372268901,1752569455335,-460.0,0.00020273,2]
[372268902,1752569455345,-460.0,0.00020273,2]
[372268903,1752569455355,-600.55531265,0.00020273,2]
[372268904,1752569455364,-460.0,0.00020273,2]
[372268905,1752569455374,-460.0,0.00020273,2]
[372268906,1752569455384,-460.0,0.00020273,2]
[372268907,1752569455394,-465.48192467,0.00020273,2]
[372268908,1752569455404,-547.53,0.00020273,2]
[372268909,1752569455414,-460.0,0.00020273,2]
[372268910,1752569455426,-1190.76,0.00020273,2]
[372268911,1752569455436,-460.0,0.00020273,2]
[372268912,1752569455446,-460.0,0.00020273,2]
[372268913,1752569455456,-1464.05,0.00020273,2]
[372268914,1752569455467,-418.0,0.00020274,2]
[372268915,1752569455478,-160.0,0.00020283,2]
[372268916,1752569455488,-160.0,0.00020283,2]
[372268917,1752569455498,-214.37129034,0.00020283,2]
[372268918,1752569455508,-160.0,0.00020283,2]
[372268919,1752569455518,-468.75,0.00020283,2]
[372268920,1752569455527,-525.51022752,0.00020283,2]
[372268921,1752569455538,-215.50840239,0.00020283,2]
[372268922,1752569455547,-838.84061749,0.00020283,2]
[372268923,1752569455557,-160.0,0.00020283,2]
[372268924,1752569455566,-12603.13032295,0.00020283,2]
[372268925,1752569455575,-160.0,0.00020283,2]
[372268926,1752569455586,-160.0,0.00020283,2]
[372268927,1752569455596,-230.76969291,0.00020283,2]
[372268928,1752569455605,-160.0,0.00020285,2]
[372268929,1752569455615,-418.0,0.00020301,2]
[372268930,1752569455625,-418.0,0.00020328,2]
[372268931,1752569455634,-160.0,0.00020348,3]
[372268932,1752569455643,-214.37129034,0.00020348,3]
[372268933,1752569455653,-12603.13032295,0.00020348,3]
[372268934,1752569455662,-10386.76218041,0.00020348,3]
[372268935,1752569455671,-418.0,0.00020356,2]
[372268936,1752569455681,-418.0,0.00020383,2]
[372268937,1752569455691,-418.0,0.00020411,2]
[372268938,1752569455700,-418.0,0.00020438,2]
[372268939,1752569455710,-418.0,0.00020465,2]
[372268940,1752569455719,-25000.0,0.00020484,2]
[372268941,1752569455729,-151.0,0.00020484,2]
[372268942,1752569455739,-418.0,0.00020493,2]
[372268943,1752569455749,-5716.81,0.000205,2]
[372268944,1752569455759,-2481.1,0.000205,2]
[372268945,1752569455768,-31720.09,0.000205,2]
[372268946,1752569455778,-425.0,0.0002052,2]
[372268947,1752569455788,-500.0,0.00020547,2]
[372268948,1752569455798,-500.0,0.00020547,2]
[372268949,1752569455808,-429.07083965,0.00020547,2]
[372268950,1752569455818,-460.0,0.00020547,2]
[372268951,1752569455828,-460.0,0.00020547,2]
[372268952,1752569455839,-460.0,0.00020547,2]
[372268953,1752569455849,-151.0,0.00020547,2]
[372268954,1752569455859,-460.0,0.00020547,2]
[372268955,1752569455868,-460.0,0.00020547,2]
[372268956,1752569455879,-337.917585,0.00020547,2]
[372268957,1752569455889,-337.917585,0.00020547,2]
[372268958,1752569455899,-460.0,0.00020547,2]
[372268959,1752569455909,-460.0,0.00020547,2]
[372268960,1752569455918,-460.0,0.00020547,2]
[372268961,1752569455928,-460.0,0.00020547,2]
[372268962,1752569455937,-460.0,0.00020547,2]
[372268963,1752569455947,-460.0,0.00020547,2]
[372268964,1752569455957,-460.0,0.00020547,2]
[372268965,1752569455966,-460.0,0.00020547,2]
[372268966,1752569455976,-576.27,0.00020547,2]
[372268967,1752569455985,-460.0,0.00020547,2]
[372268968,1752569455995,-460.0,0.00020547,2]
[372268969,1752569456006,-460.0,0.00020547,2]
[372268970,1752569456016,-506.85,0.00020547,2]
[372268971,1752569456026,-765.96,0.00020547,2]
[372268972,1752569456037,-460.0,0.00020547,2]
[372268973,1752569456158,-460.0,0.00020547,2]
[372268974,1752569456169,-460.0,0.00020547,2]
[372268975,1752569456182,-460.0,0.00020547,2]
[372268976,1752569456193,-460.0,0.00020547,2]
[372268977,1752569456203,-460.0,0.00020547,2]
[372268978,1752569456213,-839.15,0.00020547,2]
[372268979,1752569456222,-460.0,0.00020547,2]
[372268980,1752569456232,-545.9,0.00020547,2]
[372268981,1752569456241,-460.0,0.00020547,2]
[372268982,1752569456251,-460.0,0.00020547,2]
[372268983,1752569456263,-545.35,0.00020547,2]
[372268984,1752569456272,-460.0,0.00020547,2]
[372268985,1752569456282,-937.37,0.00020547,2]
[372268986,1752569456292,-425.48832527,0.00020547,2]
[372268987,1752569456303,-460.0,0.00020547,2]
[372268988,1752569456312,-460.0,0.00020547,2]
[372268989,1752569456323,-488.01963404,0.00020547,2]
[372268990,1752569456334,-460.0,0.00020547,2]
[372268991,1752569456345,-460.0,0.00020547,2]
[372268992,1752569456354,-471.98,0.00020547,2]
[372268993,1752569456364,-460.0,0.00020547,2]
[372268994,1752569456373,-930.19,0.00020547,2]
[372268995,1752569456385,-468.16342656,0.00020547,2]
[372268996,1752569456395,-460.0,0.00020547,2]
[372268997,1752569456404,-460.0,0.00020547,2]
[372268998,1752569456414,-460.0,0.00020547,2]
[372268999,1752569456424,-460.0,0.00020547,2]
[372269000,1752569456433,-460.0,0.00020547,2]
[372269001,1752569456443,-460.0,0.00020547,2]
[372269002,1752569456452,-917.11,0.00020547,2]
[372269003,1752569456462,-460.0,0.00020547,2]
[372269004,1752569456472,-460.0,0.00020547,2]
[372269005,1752569456481,-192.40003544,0.00020547,2]
[372269006,1752569456491,-460.0,0.00020547,2]
[372269007,1752569456500,-460.0,0.00020547,2]
[372269008,1752569456510,-460.0,0.00020547,2]
[372269009,1752569456520,-460.0,0.00020547,2]
[372269010,1752569456529,-460.0,0.00020547,2]
[372269011,1752569456539,-899.84,0.00020547,2]
[372269012,1752569456549,-460.0,0.00020547,2]
[372269013,1752569456559,-534.61,0.00020547,2]
[372269014,1752569456568,-460.0,0.00020547,2]
[372269015,1752569456577,-460.0,0.00020547,2]
[372269016,1752569456587,-460.0,0.00020547,2]
[372269017,1752569456596,-761.76,0.00020547,2]
[372269018,1752569456606,-460.0,0.00020547,2]
[372269019,1752569456615,-1399.42,0.00020547,2]
[372269020,1752569456625,-468.78,0.00020547,2]
[372269021,1752569456634,-460.0,0.00020547,2]
[372269022,1752569456644,-400.0,0.00020547,2]
[372269023,1752569456653,-460.0,0.00020547,2]
[372269024,1752569456662,-460.0,0.00020547,2]
[372269025,1752569456672,-491.13,0.00020547,2]
[372269026,1752569456682,-460.0,0.00020547,2]
[372269027,1752569456691,-4166.42,0.00020547,2]
[372269028,1752569456700,-1927.23,0.00020547,2]
[372269029,1752569456709,-765.26,0.00020547,2]
[372269030,1752569456719,-460.0,0.00020547,2]
[372269031,1752569456729,-5602.8,0.00020547,2]
[372269032,1752569456739,-460.0,0.00020547,2]
[372269033,1752569456748,-848.72,0.00020547,2]
[372269034,1752569456758,-460.0,0.00020547,2]
[372269035,1752569456768,-460.0,0.00020547,2]
[372269036,1752569456777,-460.0,0.00020547,2]
[372269037,1752569456787,-460.0,0.00020547,2]
[372269038,1752569456797,-460.0,0.00020547,2]
[372269039,1752569456808,-460.0,0.00020547,2]
[372269040,1752569456817,-740.44,0.00020547,2]
[372269041,1752569456827,-460.0,0.00020547,2]
[372269042,1752569456836,-460.0,0.00020547,2]
[372269043,1752569456846,-460.0,0.00020547,2]
[372269044,1752569456857,-714.34,0.00020547,2]
[372269045,1752569456869,-768.33,0.00020547,2]
[372269046,1752569456879,-460.0,0.00020547,2]
[372269047,1752569456888,-460.0,0.00020547,2]
[372269048,1752569456899,-460.0,0.00020547,2]
[372269049,1752569456909,-460.0,0.00020547,2]
[372269050,1752569456919,-6272.41,0.00020547,2]
[372269051,1752569456929,-460.0,0.00020547,2]
[372269052,1752569456939,-460.0,0.00020547,2]
[372269053,1752569456949,-460.0,0.00020547,2]
[372269054,1752569456958,-3406.65,0.00020547,2]
[372269055,1752569456968,-954.03,0.00020547,2]
[372269056,1752569456978,-685.43,0.00020547,2]
[372269057,1752569456989,-460.0,0.00020547,2]
[372269058,1752569456998,-6837.89,0.00020547,2]
[372269059,1752569457008,-460.0,0.00020547,2]
[372269060,1752569457018,-544.92,0.00020547,2]
[372269061,1752569457027,-1040.12,0.00020547,2]
[372269062,1752569457036,-1141.15,0.00020547,2]
[372269063,1752569457047,-460.0,0.00020547,2]
[372269064,1752569457057,-732.0,0.00020547,2]
[372269065,1752569457067,-460.0,0.00020547,2]
[372269066,1752569457076,-460.0,0.00020547,2]
[372269067,1752569457086,-455.58154844,0.00020547,2]
[372269068,1752569457095,-1213.65,0.00020547,2]
[372269069,1752569457104,-487.86,0.00020547,2]
[372269070,1752569457114,-545.61,0.00020547,2]
[372269071,1752569457124,-699.09,0.00020547,2]
[372269072,1752569457134,-460.0,0.00020547,2]
[372269073,1752569457143,-1544.73,0.00020547,2]
[372269074,1752569457152,-843.11,0.00020547,2]
[372269075,1752569457161,-1501.29,0.00020547,2]
[372269076,1752569457171,-726.16,0.00020547,2]
[372269077,1752569457181,-460.0,0.00020547,2]
[372269078,1752569457191,-513.49,0.00020547,2]
[372269079,1752569457200,-460.0,0.00020547,2]
[372269080,1752569457210,-460.0,0.00020547,2]
[372269081,1752569457219,-869.68,0.00020547,2]
[372269082,1752569457229,-572.26,0.00020547,2]
[372269083,1752569457239,-626.75,0.00020547,2]
[372269084,1752569457249,-2036.4,0.00020547,2]
[372269085,1752569457261,-460.0,0.00020547,2]
[372269086,1752569457271,-2261.79,0.00020547,2]
[372269087,1752569457281,-6187.23,0.00020547,2]
[372269088,1752569457290,-1463.18,0.00020547,2]
[372269089,1752569457302,-460.0,0.00020547,2]
[372269090,1752569457312,-460.0,0.00020547,2]
[372269091,1752569457321,-460.0,0.00020547,2]
[372269092,1752569457332,-460.0,0.00020547,2]
[372269093,1752569457342,-460.0,0.00020547,2]
[372269094,1752569457351,-547.53,0.00020547,2]
[372269096,1752569457361,-460.0,0.00020547,2]
[372269097,1752569457370,-1190.76,0.00020547,2]
[372269098,1752569457380,-460.0,0.00020547,2]
[372269099,1752569457390,-460.0,0.00020547,2]
[372269100,1752569457400,-1464.05,0.00020547,2]
[372269101,1752569457409,-1500.0,0.00020568,2]
[372269102,1752569457420,-1500.0,0.00020568,2]
[372269103,1752569457429,-503.52662773,0.00020568,2]
[372269104,1752569457439,-1500.0,0.00020568,2]
[372269105,1752569457449,-1500.0,0.00020568,2]
[372269106,1752569457458,-1500.0,0.00020568,2]
[372269107,1752569457468,-1023.0,0.00020571,2]
[372269108,1752569457477,-420.0,0.00020572,2]
[372269109,1752569457487,-10386.76218041,0.0002059,3]
[372269110,1752569457496,-202.07,0.00020594,2]
[372269111,1752569457507,-151.0,0.000206,2]
[372269112,1752569457516,-534.44540832,0.00020672,2]
[372269113,1752569457526,-1680.0,0.00020672,2]
[372269114,1752569457536,-500.0,0.00020686,2]
[372269115,1752569457546,-500.0,0.00020686,2]
[372269116,1752569457555,-506.39072393,0.00020686,2]
[372269117,1752569457566,-500.0,0.00020686,2]
[372269118,1752569457575,-500.0,0.00020783,2]
[372269119,1752569457585,-500.0,0.00020783,2]
[372269120,1752569457594,-500.0,0.00020783,2]
[372269121,1752569457603,-502.44996152,0.00020783,2]
[372269122,1752569457613,-604.31728,0.00020783,2]
[372269123,1752569457622,-5000.0,0.00020787,2]
[372269124,1752569457632,-500.0,0.00020795,2]
[372269125,1752569457641,-260.0,0.00020817,2]
[372269126,1752569457651,-500.0,0.00020821,2]
[372269127,1752569457660,-460.0,0.00020821,2]
[372269128,1752569457670,-575.3,0.00020821,2]
[372269129,1752569457680,-460.0,0.00020821,2]
[372269130,1752569457690,-460.0,0.00020821,2]
[372269131,1752569457699,-460.0,0.00020821,2]
[372269132,1752569457709,-460.0,0.00020821,2]
[372269133,1752569457719,-460.0,0.00020821,2]
[372269134,1752569457729,-460.0,0.00020821,2]
[372269135,1752569457739,-460.0,0.00020821,2]
[372269136,1752569457749,-460.0,0.00020821,2]
[372269137,1752569457758,-460.0,0.00020821,2]
[372269138,1752569457770,-576.27,0.00020821,2]
[372269139,1752569457780,-320.66908014,0.00020821,2]
[372269140,1752569457790,-481.24664277,0.00020821,2]
[372269141,1752569457799,-460.0,0.00020821,2]
[372269142,1752569457809,-506.85,0.00020821,2]
[372269143,1752569457819,-765.96,0.00020821,2]
[372269144,1752569457829,-460.0,0.00020821,2]
[372269145,1752569457839,-460.0,0.00020821,2]
[372269146,1752569457848,-460.0,0.00020821,2]
[372269147,1752569457858,-460.0,0.00020821,2]
[372269148,1752569457868,-216.94396209,0.00020821,2]
[372269149,1752569457877,-460.0,0.00020821,2]
[372269150,1752569457887,-839.15,0.00020821,2]
[372269151,1752569457896,-460.0,0.00020821,2]
[372269152,1752569457906,-545.9,0.00020821,2]
[372269153,1752569457916,-460.0,0.00020821,2]
[372269154,1752569457925,-545.35,0.00020821,2]
[372269155,1752569457934,-460.0,0.00020821,2]
[372269156,1752569457944,-460.0,0.00020821,2]
[372269157,1752569457955,-937.37,0.00020821,2]
[372269158,1752569457964,-460.0,0.00020821,2]
[372269159,1752569457973,-555.21943244,0.00020821,2]
[372269160,1752569457983,-460.0,0.00020821,2]
[372269161,1752569457992,-460.0,0.00020821,2]
[372269162,1752569458002,-471.98,0.00020821,2]
[372269163,1752569458012,-930.19,0.00020821,2]
[372269164,1752569458024,-460.0,0.00020821,2]
[372269165,1752569458035,-460.0,0.00020821,2]
[372269166,1752569458044,-330.68003145,0.00020821,2]
[372269167,1752569458055,-441.14699189,0.00020821,2]
[372269168,1752569458066,-460.0,0.00020821,2]
[372269169,1752569458077,-460.0,0.00020821,2]
[372269170,1752569458087,-917.11,0.00020821,2]
[372269171,1752569458098,-460.0,0.00020821,2]
[372269172,1752569458108,-460.0,0.00020821,2]
[372269173,1752569458117,-460.0,0.00020821,2]
[372269174,1752569458126,-460.0,0.00020821,2]
[372269175,1752569458135,-460.0,0.00020821,2]
[372269176,1752569458146,-460.0,0.00020821,2]
[372269177,1752569458156,-195.76260256,0.00020821,2]
[372269178,1752569458167,-899.84,0.00020821,2]
[372269179,1752569458178,-460.0,0.00020821,2]
[372269180,1752569458188,-534.61,0.00020821,2]
[372269181,1752569458199,-460.0,0.00020821,2]
[372269182,1752569458209,-460.0,0.00020821,2]
[372269183,1752569458219,-460.0,0.00020821,2]
[372269184,1752569458229,-761.76,0.00020821,2]
[372269185,1752569458238,-460.0,0.00020821,2]
[372269186,1752569458247,-1399.42,0.00020821,2]
[372269187,1752569458260,-468.78,0.00020821,2]
[372269188,1752569458270,-504.7,0.00020821,2]
[372269189,1752569458279,-495.78,0.00020821,2]
[372269190,1752569458288,-460.0,0.00020821,2]
[372269191,1752569458298,-491.13,0.00020821,2]
[372269192,1752569458308,-460.0,0.00020821,2]
[372269193,1752569458317,-4166.42,0.00020821,2]
[372269194,1752569458327,-1927.23,0.00020821,2]
[372269195,1752569458337,-765.26,0.00020821,2]
[372269196,1752569458348,-460.0,0.00020821,2]
[372269197,1752569458357,-5602.8,0.00020821,2]
[372269198,1752569458367,-460.0,0.00020821,2]
[372269199,1752569458377,-848.72,0.00020821,2]
[372269200,1752569458386,-460.0,0.00020821,2]
[372269201,1752569458396,-460.0,0.00020821,2]
[372269202,1752569458406,-460.0,0.00020821,2]
[372269203,1752569458415,-460.0,0.00020821,2]
[372269204,1752569458426,-460.0,0.00020821,2]
[372269205,1752569458437,-460.0,0.00020821,2]
[372269206,1752569458446,-740.44,0.00020821,2]
[372269207,1752569458456,-460.0,0.00020821,2]
[372269208,1752569458465,-460.0,0.00020821,2]
[372269209,1752569458476,-460.0,0.00020821,2]
[372269210,1752569458485,-714.34,0.00020821,2]
[372269211,1752569458496,-768.33,0.00020821,2]
[372269212,1752569458505,-460.0,0.00020821,2]
[372269213,1752569458514,-460.0,0.00020821,2]
[372269214,1752569458524,-460.0,0.00020821,2]
[372269215,1752569458534,-460.0,0.00020821,2]
[372269216,1752569458545,-6272.41,0.00020821,2]
[372269217,1752569458555,-460.0,0.00020821,2]
[372269218,1752569458565,-460.0,0.00020821,2]
[372269219,1752569458575,-460.0,0.00020821,2]
[372269220,1752569458587,-3406.65,0.00020821,2]
[372269221,1752569458597,-954.03,0.00020821,2]
[372269222,1752569458607,-685.43,0.00020821,2]
[372269223,1752569458616,-460.0,0.00020821,2]
[372269224,1752569458626,-6837.89,0.00020821,2]
[372269225,1752569458636,-460.0,0.00020821,2]
[372269226,1752569458645,-544.92,0.00020821,2]
[372269227,1752569458655,-1040.12,0.00020821,2]
[372269228,1752569458665,-1141.15,0.00020821,2]
[372269229,1752569458674,-732.0,0.00020821,2]
[372269230,1752569458684,-460.0,0.00020821,2]
[372269231,1752569458694,-460.0,0.00020821,2]
[372269232,1752569458705,-460.0,0.00020821,2]
[372269233,1752569458715,-1213.65,0.00020821,2]
[372269234,1752569458725,-487.86,0.00020821,2]
[372269235,1752569458735,-545.61,0.00020821,2]
[372269236,1752569458747,-699.09,0.00020821,2]
[372269237,1752569458757,-1544.73,0.00020821,2]
[372269238,1752569458766,-460.0,0.00020821,2]
[372269239,1752569458775,-843.11,0.00020821,2]
[372269240,1752569458785,-1501.29,0.00020821,2]
[372269241,1752569458795,-726.16,0.00020821,2]
[372269242,1752569458805,-460.0,0.00020821,2]
[372269243,1752569458815,-513.49,0.00020821,2]
[372269244,1752569458825,-460.0,0.00020821,2]
[372269245,1752569458834,-460.0,0.00020821,2]
[372269246,1752569458844,-869.68,0.00020821,2]
[372269247,1752569458854,-626.75,0.00020821,2]
[372269248,1752569458864,-2036.4,0.00020821,2]
[372269249,1752569458983,-460.0,0.00020821,2]
[372269250,1752569458993,-2261.79,0.00020821,2]
[372269251,1752569459003,-6187.23,0.00020821,2]
[372269252,1752569459012,-1463.18,0.00020821,2]
[372269253,1752569459022,-460.0,0.00020821,2]
[372269254,1752569459032,-460.0,0.00020821,2]
[372269255,1752569459042,-460.0,0.00020821,2]
[372269256,1752569459051,-460.0,0.00020821,2]
[372269257,1752569459061,-460.0,0.00020821,2]
[372269258,1752569459070,-547.53,0.00020821,2]
[372269259,1752569459080,-1190.76,0.00020821,2]
[372269260,1752569459090,-460.0,0.00020821,2]
[372269261,1752569459100,-460.0,0.00020821,2]
[372269262,1752569459110,-1464.05,0.00020821,2]
[372269263,1752569459119,-10386.76218041,0.00020831,4]
[372269264,1752569459130,-178.195,0.00020907,2]
[372269265,1752569459140,-723.999,0.00020907,2]
[372269266,1752569459149,-500.0,0.00020929,2]
[372269267,1752569459159,-500.0,0.00020929,2]
[372269268,1752569459168,-500.0,0.00020929,2]
[372269269,1752569459178,-500.0,0.00020929,2]
[372269270,1752569459188,-779.28205371,0.00020975,2]
[372269271,1752569459197,-500.0,0.00020976,2]
[372269272,1752569459207,-500.0,0.00020976,2]
[372269273,1752569459217,-151.0,0.00021,2]
[372269274,1752569459227,-337.917585,0.00021,2]
[372269275,1752569459236,-337.917585,0.00021,2]
[372269276,1752569459247,-25000.0,0.00021032,2]
[372269277,1752569459259,-151.55350398,0.00021032,2]
[372269278,1752569459268,-10386.76218041,0.00021072,4]
[372269279,1752569459279,-500.0,0.00021095,2]
[372269280,1752569459288,-460.0,0.00021095,2]
[372269281,1752569459299,-151.0,0.00021095,2]
[372269282,1752569459308,-460.0,0.00021095,2]
[372269283,1752569459318,-151.0,0.00021095,2]
[372269284,1752569459328,-460.0,0.00021095,2]
[372269285,1752569459339,-460.0,0.00021095,2]
[372269286,1752569459349,-337.917585,0.00021095,2]
[372269287,1752569459359,-337.917585,0.00021095,2]
[372269288,1752569459369,-460.0,0.00021095,2]
[372269289,1752569459379,-460.0,0.00021095,2]
[372269290,1752569459389,-328.24069586,0.00021095,2]
[372269291,1752569459399,-460.0,0.00021095,2]
[372269292,1752569459409,-521.40262785,0.00021095,2]
[372269293,1752569459419,-460.0,0.00021095,2]
[372269294,1752569459429,-576.27,0.00021095,2]
[372269295,1752569459438,-460.0,0.00021095,2]
[372269296,1752569459448,-506.85,0.00021095,2]
[372269297,1752569459458,-765.96,0.00021095,2]
[372269298,1752569459467,-150.00211973,0.00021095,2]
[372269299,1752569459478,-460.0,0.00021095,2]
[372269300,1752569459489,-460.0,0.00021095,2]
[372269301,1752569459498,-460.0,0.00021095,2]
[372269302,1752569459509,-460.0,0.00021095,2]
[372269303,1752569459519,-839.15,0.00021095,2]
[372269304,1752569459529,-460.0,0.00021095,2]
[372269305,1752569459539,-545.9,0.00021095,2]
[372269306,1752569459550,-460.0,0.00021095,2]
[372269307,1752569459560,-545.35,0.00021095,2]
[372269308,1752569459570,-586.45707663,0.00021095,2]
[372269309,1752569459580,-460.0,0.00021095,2]
[372269310,1752569459590,-937.37,0.00021095,2]
[372269311,1752569459600,-466.4211985,0.00021095,2]
[372269312,1752569459609,-460.0,0.00021095,2]
[372269313,1752569459619,-460.0,0.00021095,2]
[372269314,1752569459630,-471.98,0.00021095,2]
[372269315,1752569459640,-930.19,0.00021095,2]
[372269316,1752569459649,-555.52314097,0.00021095,2]
[372269317,1752569459660,-460.0,0.00021095,2]
[372269318,1752569459669,-460.0,0.00021095,2]
[372269319,1752569459678,-460.0,0.00021095,2]
[372269320,1752569459689,-917.11,0.00021095,2]
[372269321,1752569459698,-460.0,0.00021095,2]
[372269322,1752569459708,-460.0,0.00021095,2]
[372269323,1752569459718,-460.0,0.00021095,2]
[372269324,1752569459727,-460.0,0.00021095,2]
[372269325,1752569459737,-460.0,0.00021095,2]
[372269326,1752569459747,-460.0,0.00021095,2]
[372269327,1752569459757,-899.84,0.00021095,2]
[372269328,1752569459768,-460.0,0.00021095,2]
[372269329,1752569459780,-534.61,0.00021095,2]
[372269330,1752569459791,-460.0,0.00021095,2]
[372269331,1752569459802,-460.0,0.00021095,2]
[372269332,1752569459812,-460.0,0.00021095,2]
[372269333,1752569459823,-761.76,0.00021095,2]
[372269334,1752569459834,-460.0,0.00021095,2]
[372269335,1752569459845,-1399.42,0.00021095,2]
[372269336,1752569459854,-468.78,0.00021095,2]
[372269337,1752569459864,-460.0,0.00021095,2]
[372269338,1752569459874,-491.13,0.00021095,2]
[372269339,1752569459885,-460.0,0.00021095,2]
[372269340,1752569459896,-4166.42,0.00021095,2]
[372269341,1752569459906,-1927.23,0.00021095,2]
[372269342,1752569459915,-765.26,0.00021095,2]
[372269343,1752569459926,-460.0,0.00021095,2]
[372269344,1752569459936,-5602.8,0.00021095,2]
[372269345,1752569459947,-460.0,0.00021095,2]
[372269346,1752569459957,-848.72,0.00021095,2]
[372269347,1752569459968,-460.0,0.00021095,2]
[372269348,1752569459979,-460.0,0.00021095,2]
[372269349,1752569459989,-460.0,0.00021095,2]
[372269350,1752569459999,-460.0,0.00021095,2]
[372269351,1752569460009,-460.0,0.00021095,2]
[372269352,1752569460020,-460.0,0.00021095,2]
[372269353,1752569460031,-740.44,0.00021095,2]
[372269354,1752569460041,-460.0,0.00021095,2]
[372269355,1752569460052,-460.0,0.00021095,2]
[372269356,1752569460062,-460.0,0.00021095,2]
[372269357,1752569460072,-714.34,0.00021095,2]
[372269358,1752569460083,-768.33,0.00021095,2]
[372269359,1752569460094,-460.0,0.00021095,2]
[372269360,1752569460105,-460.0,0.00021095,2]
[372269361,1752569460115,-460.0,0.00021095,2]
[372269362,1752569460125,-460.0,0.00021095,2]
[372269363,1752569460135,-6272.41,0.00021095,2]
[372269364,1752569460145,-401.89557212,0.00021095,2]
[372269365,1752569460155,-460.0,0.00021095,2]
[372269366,1752569460166,-460.0,0.00021095,2]
[372269367,1752569460176,-3406.65,0.00021095,2]